fUSD/lending_fUSD_20240301
["ID","MTS","AMOUNT","RATE_DAILY","PERIOD"]
[315989032,1709315472762,-500.0,0.00022794,2]
[315989033,1709315472772,-664.81,0.00022794,2]
[315989034,1709315472783,-500.0,0.00022794,2]
[315989035,1709315472793,-500.0,0.00022794,2]
[315989036,1709315472803,-500.0,0.00022794,2]
[315989037,1709315472813,-500.0,0.00022794,2]
[315989038,1709315472823,-500.0,0.00022794,2]
[315989039,1709315472833,-500.0,0.00022794,2]
[315989040,1709315472843,-670.97,0.00022794,2]
[315989041,1709315472852,-488.82754127,0.00022794,2]
[315989042,1709315472862,-500.0,0.00022794,2]
[315989043,1709315472873,-500.0,0.00022794,2]
[315989044,1709315472883,-407.92516182,0.00022794,2]
[315989045,1709315472893,-544.53,0.00022794,2]
[315989046,1709315472904,-550.26,0.00022794,2]
[315989047,1709315472914,-164.88,0.00022794,2]
[315989048,1709315472925,-869.36,0.00022794,2]
[315989049,1709315472935,-1329.59,0.00022794,2]
[315989050,1709315472945,-929.86,0.00022794,2]
[315989051,1709315472958,-526.24,0.00022794,2]
[315989052,1709315472967,-610.08361196,0.00022794,2]
[315989053,1709315472978,-563.21,0.00022794,2]
[315989054,1709315472988,-6946.66,0.00022794,2]
[315989055,1709315472997,-500.0,0.00022794,2]
[315989056,1709315473007,-500.0,0.00022794,2]
[315989057,1709315473018,-656.16,0.00022794,2]
[315989058,1709315473093,-732.2,0.00022794,2]
[315989059,1709315473104,-507.65,0.00022794,2]
[315989060,1709315473113,-500.0,0.00022794,2]
[315989061,1709315473123,-624.26,0.00022794,2]
[315989062,1709315473133,-475.0,0.00022794,2]
[315989063,1709315473142,-619.16,0.00022794,2]
[315989064,1709315473154,-594.79,0.00022794,2]
[315989065,1709315473163,-1910.74,0.00022794,2]
[315989066,1709315473173,-500.0,0.00022794,2]
[315989067,1709315473183,-787.67,0.00022794,2]
[315989068,1709315473196,-500.0,0.00022794,2]
[315989069,1709315473207,-666.11,0.00022794,2]
[315989070,1709315473217,-758.67,0.00022794,2]
[315989071,1709315473226,-500.0,0.00022794,2]
[315989072,1709315473236,-500.0,0.00022794,2]
[315989073,1709315473247,-1272.43,0.00022794,2]
[315989074,1709315473256,-500.0,0.00022794,2]
[315989075,1709315473267,-585.06,0.00022794,2]
[315989076,1709315473278,-286.85259797,0.00022794,2]
[315989077,1709315473288,-500.0,0.00022794,2]
[315989078,1709315473298,-500.0,0.00022794,2]
[315989079,1709315473308,-500.0,0.00022794,2]
[315989080,1709315473318,-618.2,0.00022794,2]
[315989081,1709315473328,-665.9,0.00022794,2]
[315989082,1709315473338,-500.0,0.00022794,2]
[315989083,1709315473348,-500.0,0.00022794,2]
[315989084,1709315473360,-1673.3,0.00022794,2]
[315989085,1709315473370,-663.58,0.00022794,2]
[315989086,1709315473381,-9419.71,0.00022794,2]
[315989087,1709315473395,-2865.09,0.00022794,2]
[315989088,1709315473406,-500.0,0.00022794,2]
[315989089,1709315473419,-528.92,0.00022794,2]
[315989090,1709315473428,-500.0,0.00022794,2]
[315989091,1709315473438,-500.0,0.00022794,2]
[315989092,1709315473449,-944.55,0.00022794,2]
[315989093,1709315473460,-1231.33,0.00022794,2]
[315989094,1709315473475,-1977.21,0.00022794,2]
[315989095,1709315473485,-1758.33,0.00022794,2]
[315989096,1709315473496,-500.0,0.00022794,2]
[315989097,1709315473506,-1744.78,0.00022794,2]
[315989098,1709315473521,-2280.14,0.00022794,2]
[315989099,1709315473532,-500.0,0.00022794,2]
[315989100,1709315473543,-712.05,0.00022794,2]
[315989101,1709315473553,-1846.58,0.00022794,2]
[315989102,1709315473564,-1450.15,0.00022794,2]
[315989103,1709315473574,-1761.94,0.00022794,2]
[315989104,1709315473584,-584.38,0.00022794,2]
[315989105,1709315473595,-503.41,0.00022794,2]
[315989106,1709315473606,-500.0,0.00022794,2]
[315989107,1709315473617,-500.0,0.00022794,2]
[315989108,1709315473628,-694.9,0.00022794,2]
[315989109,1709315473638,-1357.38,0.00022794,2]
[315989110,1709315473648,-500.0,0.00022794,2]
[315989111,1709315473660,-558.06,0.00022794,2]
[315989112,1709315473671,-528.52,0.00022794,2]
[315989113,1709315473682,-5039.85,0.00022794,2]
[315989114,1709315473692,-1616.86,0.00022794,2]
[315989115,1709315473702,-500.0,0.00022794,2]
[315989116,1709315473717,-711.94,0.00022794,2]
[315989117,1709315473727,-500.0,0.00022794,2]
[315989118,1709315473738,-2715.45,0.00022794,2]
[315989119,1709315473749,-2578.97,0.00022794,2]
[315989120,1709315473759,-615.02,0.00022794,2]
[315989121,1709315473769,-780.7,0.00022794,2]
[315989122,1709315473779,-500.0,0.00022794,2]
[315989123,1709315473788,-2063.98,0.00022794,2]
[315989124,1709315473798,-500.0,0.00022794,2]
[315989125,1709315473809,-2907.93,0.00022794,2]
[315989126,1709315473820,-1187.01,0.00022794,2]
[315989127,1709315473831,-840.0,0.00022794,2]
[315989128,1709315473841,-1838.6,0.00022794,2]
[315989129,1709315473852,-500.0,0.00022794,2]
[315989130,1709315473864,-528.96,0.00022794,2]
[315989131,1709315473874,-500.0,0.00022794,2]
[315989132,1709315473884,-3945.02,0.00022794,2]
[315989133,1709315473895,-637.74,0.00022794,2]
[315989134,1709315473905,-500.0,0.00022794,2]
[315989135,1709315473925,-1575.62,0.00022794,2]
[315989136,1709315473936,-500.0,0.00022794,2]
[315989137,1709315473947,-648.77,0.00022794,2]
[315989138,1709315473959,-2766.29,0.00022794,2]
[315989139,1709315473969,-724.82,0.00022794,2]
[315989140,1709315473979,-500.0,0.00022794,2]
[315989141,1709315473990,-2335.5,0.00022794,2]
[315989142,1709315474000,-500.0,0.00022794,2]
[315989143,1709315474011,-500.0,0.00022794,2]
[315989144,1709315474020,-2362.12,0.00022794,2]
[315989145,1709315474033,-500.0,0.00022794,2]
[315989146,1709315474048,-500.0,0.00022794,2]
[315989147,1709315474059,-704.7,0.00022794,2]
[315989148,1709315474069,-500.0,0.00022794,2]
[315989149,1709315474080,-8337.41,0.00022794,2]
[315989150,1709315474090,-583.26,0.00022794,2]
[315989151,1709315474100,-500.0,0.00022794,2]
[315989152,1709315474110,-500.0,0.00022794,2]
[315989153,1709315474131,-500.0,0.00022794,2]
[315989154,1709315474141,-1148.57,0.00022794,2]
[315989155,1709315474152,-1699.62,0.00022794,2]
[315989156,1709315474163,-240.15,0.00022794,2]
[315989157,1709315474173,-551.1,0.00022794,2]
[315989158,1709315474183,-500.0,0.00022794,2]
[315989159,1709315474193,-500.0,0.00022794,2]
[315989160,1709315474209,-701.9,0.00022794,2]
[315989161,1709315474226,-5377.1,0.00022794,2]
[315989162,1709315474236,-4734.59,0.00022794,2]
[315989163,1709315474246,-1549.54,0.00022794,2]
[315989164,1709315474256,-1054.75,0.00022794,2]
[315989165,1709315474266,-575.91,0.00022794,2]
[315989166,1709315474276,-500.0,0.00022794,2]
[315989167,1709315474285,-2878.14752299,0.00022799,2]
[315989168,1709315474295,-2878.14752293,0.00022799,2]
[315989169,1709315474307,-2878.14752293,0.00022799,2]
[315989170,1709315474317,-2878.14752293,0.00022799,2]
[315989171,1709315474326,-2878.14752293,0.00022799,2]
[315989172,1709315474336,-2878.14752293,0.00022799,2]
[315989173,1709315474346,-2878.14752293,0.00022799,2]
[315989174,1709315474356,-2878.14752293,0.00022799,2]
[315989175,1709315474365,-2878.14752293,0.00022799,2]
[315989176,1709315474375,-664.55807887,0.00022799,2]
[315989177,1709315474384,-664.55807886,0.00022799,2]
[315989178,1709315474394,-664.55807886,0.00022799,2]
[315989179,1709315474404,-664.55807886,0.00022799,2]
[315989180,1709315474413,-664.55807886,0.00022799,2]
[315989181,1709315474423,-664.55807886,0.00022799,2]
[315989182,1709315474432,-664.55807886,0.00022799,2]
[315989183,1709315474442,-664.55807886,0.00022799,2]
[315989184,1709315474452,-664.55807886,0.00022799,2]
[315989185,1709315474462,-151.0,0.00022799,7]
[315989186,1709315474472,-6959.03722845,0.000228,2]
[315989187,1709315474482,-500.0,0.00022821,2]
[315989188,1709315474492,-500.0,0.0002283,2]
[315989189,1709315474502,-500.0,0.00022838,2]
[315989190,1709315474513,-500.0,0.00022847,2]
[315989191,1709315474523,-500.0,0.00022856,2]
[315989192,1709315474533,-500.0,0.00022865,2]
[315989193,1709315474543,-500.0,0.00022874,2]
[315989194,1709315474553,-500.0,0.00022882,2]
[315989195,1709315474564,-205.47299557,0.00022888,2]
[315989196,1709315474574,-24091.47136395,0.0002289,3]
[315989197,1709315474585,-500.0,0.00022891,2]
[315989198,1709315474594,-988.25,0.00022899,2]
[315989199,1709315474604,-982.65,0.000229,3]
[315989200,1709315474614,-500.0,0.000229,2]
[315989201,1709315474624,-22196.17392346,0.000229,2]
[315989202,1709315474634,-470.97184002,0.000229,2]
[315989203,1709315474645,-16000.0,0.000229,2]
[315989204,1709315474655,-2878.14752293,0.000229,2]
[315989205,1709315474665,-664.55807886,0.000229,2]
[315989206,1709315474676,-162.81523999,0.000229,2]
[315989207,1709315474686,-1873.01921599,0.000229,2]
[315989208,1709315474696,-504.25246962,0.000229,2]
[315989209,1709315474709,-6959.03722845,0.000229,2]
[315989210,1709315474719,-161.92746072,0.000229,6]
[315989211,1709315474730,-225.11032061,0.000229,2]
[315989212,1709315474740,-225.11032054,0.000229,2]
[315989213,1709315474751,-2375.92492461,0.000229,2]
[315989214,1709315474761,-1000.34221376,0.000229,2]
[315989215,1709315474771,-225.11032054,0.000229,2]
[315989216,1709315474781,-225.11032054,0.000229,2]
[315989217,1709315474791,-225.11032054,0.000229,2]
[315989218,1709315474800,-225.11032054,0.000229,2]
[315989219,1709315474810,-225.11032054,0.000229,2]
[315989220,1709315474820,-225.11032054,0.000229,2]
[315989221,1709315474830,-284.58796568,0.00022902,2]
[315989222,1709315474840,-261.48882369,0.00022902,2]
[315989223,1709315474851,-21166.80111274,0.00022903,2]
[315989224,1709315474861,-151.0,0.00022903,7]
[315989225,1709315474871,-764.5,0.00022904,2]
[315989226,1709315474881,-500.0,0.00022904,2]
[315989227,1709315474891,-640.18,0.00022904,2]
[315989228,1709315474901,-500.0,0.00022904,2]
[315989229,1709315474911,-552.18,0.00022904,2]
[315989230,1709315474924,-500.0,0.00022904,2]
[315989231,1709315474934,-500.0,0.00022904,2]
[315989232,1709315474944,-500.0,0.00022904,2]
[315989233,1709315474955,-500.0,0.00022904,2]
[315989234,1709315474967,-500.0,0.00022904,2]
[315989235,1709315474977,-622.51,0.00022904,2]
[315989236,1709315474987,-500.0,0.00022904,2]
[315989237,1709315474997,-500.0,0.00022904,2]
[315989238,1709315475008,-500.0,0.00022904,2]
[315989239,1709315475018,-542.46022751,0.00022904,2]
[315989240,1709315475029,-203.2451077,0.00022904,2]
[315989241,1709315475039,-500.0,0.00022904,2]
[315989242,1709315475049,-500.0,0.00022904,2]
[315989243,1709315475059,-500.0,0.00022904,2]
[315989244,1709315475071,-525.12,0.00022904,2]
[315989245,1709315475080,-500.0,0.00022904,2]
[315989246,1709315475089,-500.0,0.00022904,2]
[315989247,1709315475099,-544.61,0.00022904,2]
[315989248,1709315475108,-500.0,0.00022904,2]
[315989249,1709315475118,-500.0,0.00022904,2]
[315989250,1709315475128,-500.0,0.00022904,2]
[315989251,1709315475138,-500.0,0.00022904,2]
[315989252,1709315475148,-500.0,0.00022904,2]
[315989253,1709315475164,-500.0,0.00022904,2]
[315989254,1709315475174,-500.0,0.00022904,2]
[315989255,1709315475184,-500.0,0.00022904,2]
[315989256,1709315475195,-270.60287893,0.00022904,2]
[315989257,1709315475208,-546.83,0.00022904,2]
[315989258,1709315475218,-150.0,0.00022904,2]
[315989259,1709315475228,-512.88905293,0.00022904,2]
[315989260,1709315475239,-500.0,0.00022904,2]
[315989261,1709315475250,-664.81,0.00022904,2]
[315989262,1709315475259,-500.0,0.00022904,2]
[315989263,1709315475272,-474.97,0.00022904,2]
[315989264,1709315475282,-500.0,0.00022904,2]
[315989265,1709315475293,-500.0,0.00022904,2]
[315989266,1709315475303,-500.0,0.00022904,2]
[315989267,1709315475314,-500.0,0.00022904,2]
[315989268,1709315475323,-670.97,0.00022904,2]
[315989269,1709315475337,-420.58054325,0.00022904,2]
[315989270,1709315475347,-500.0,0.00022904,2]
[315989271,1709315475357,-544.53,0.00022904,2]
[315989272,1709315475368,-550.26,0.00022904,2]
[315989273,1709315475378,-869.36,0.00022904,2]
[315989274,1709315475388,-1329.59,0.00022904,2]
[315989275,1709315475398,-929.86,0.00022904,2]
[315989276,1709315475411,-526.24,0.00022904,2]
[315989277,1709315475421,-563.21,0.00022904,2]
[315989278,1709315475431,-6946.66,0.00022904,2]
[315989279,1709315475441,-500.0,0.00022904,2]
[315989280,1709315475450,-500.0,0.00022904,2]
[315989281,1709315475461,-656.16,0.00022904,2]
[315989282,1709315475471,-732.2,0.00022904,2]
[315989283,1709315475482,-507.65,0.00022904,2]
[315989284,1709315475492,-500.0,0.00022904,2]
[315989285,1709315475501,-624.26,0.00022904,2]
[315989286,1709315475511,-619.16,0.00022904,2]
[315989287,1709315475521,-594.79,0.00022904,2]
[315989288,1709315475536,-1910.74,0.00022904,2]
[315989289,1709315475546,-500.0,0.00022904,2]
[315989290,1709315475556,-787.67,0.00022904,2]
[315989291,1709315475568,-500.0,0.00022904,2]
[315989292,1709315475578,-666.11,0.00022904,2]
[315989293,1709315475588,-758.67,0.00022904,2]
[315989294,1709315475599,-500.0,0.00022904,2]
[315989295,1709315475610,-500.0,0.00022904,2]
[315989296,1709315475622,-1272.43,0.00022904,2]
[315989297,1709315475633,-500.0,0.00022904,2]
[315989298,1709315475644,-585.06,0.00022904,2]
[315989299,1709315475655,-500.0,0.00022904,2]
[315989300,1709315475665,-500.0,0.00022904,2]
[315989301,1709315475676,-500.0,0.00022904,2]
[315989302,1709315475686,-618.2,0.00022904,2]
[315989303,1709315475696,-665.9,0.00022904,2]
[315989304,1709315475707,-500.0,0.00022904,2]
[315989305,1709315475718,-500.0,0.00022904,2]
[315989306,1709315475728,-1673.3,0.00022904,2]
[315989307,1709315475738,-663.58,0.00022904,2]
[315989308,1709315475747,-9419.71,0.00022904,2]
[315989309,1709315475757,-2865.09,0.00022904,2]
[315989310,1709315475767,-500.0,0.00022904,2]
[315989311,1709315475778,-528.92,0.00022904,2]
[315989312,1709315475789,-500.0,0.00022904,2]
[315989313,1709315475800,-500.0,0.00022904,2]
[315989314,1709315475811,-944.55,0.00022904,2]
[315989315,1709315475823,-1231.33,0.00022904,2]
[315989316,1709315475834,-1977.21,0.00022904,2]
[315989317,1709315475845,-1758.33,0.00022904,2]
[315989318,1709315475856,-500.0,0.00022904,2]
[315989319,1709315475867,-1744.78,0.00022904,2]
[315989320,1709315475878,-2280.14,0.00022904,2]
[315989321,1709315475889,-500.0,0.00022904,2]
[315989322,1709315475900,-712.05,0.00022904,2]
[315989323,1709315475910,-1846.58,0.00022904,2]
[315989324,1709315475921,-1450.15,0.00022904,2]
[315989325,1709315475932,-1761.94,0.00022904,2]
[315989326,1709315475942,-584.38,0.00022904,2]
[315989327,1709315475953,-503.41,0.00022904,2]
[315989328,1709315475966,-500.0,0.00022904,2]
[315989329,1709315475976,-500.0,0.00022904,2]
[315989330,1709315475986,-694.9,0.00022904,2]
[315989331,1709315475997,-1357.38,0.00022904,2]
[315989332,1709315476008,-558.06,0.00022904,2]
[315989333,1709315476019,-500.0,0.00022904,2]
[315989334,1709315476029,-528.52,0.00022904,2]
[315989335,1709315476040,-5039.85,0.00022904,2]
[315989336,1709315476051,-1616.86,0.00022904,2]
[315989337,1709315476061,-400.59150836,0.00022904,2]
[315989338,1709315476071,-711.94,0.00022904,2]
[315989339,1709315476082,-500.0,0.00022904,2]
[315989340,1709315476092,-2715.45,0.00022904,2]
[315989341,1709315476102,-2578.97,0.00022904,2]
[315989342,1709315476112,-615.02,0.00022904,2]
[315989343,1709315476122,-780.7,0.00022904,2]
[315989344,1709315476132,-500.0,0.00022904,2]
[315989345,1709315476142,-2063.98,0.00022904,2]
[315989346,1709315476154,-500.0,0.00022904,2]
[315989347,1709315476164,-2907.93,0.00022904,2]
[315989348,1709315476174,-1187.01,0.00022904,2]
[315989349,1709315476184,-840.0,0.00022904,2]
[315989350,1709315476197,-1838.6,0.00022904,2]
[315989351,1709315476207,-500.0,0.00022904,2]
[315989352,1709315476217,-528.96,0.00022904,2]
[315989353,1709315476226,-285.25,0.00022904,2]
[315989354,1709315476236,-3945.02,0.00022904,2]
[315989355,1709315476245,-637.74,0.00022904,2]
[315989356,1709315476255,-500.0,0.00022904,2]
[315989357,1709315476266,-1575.62,0.00022904,2]
[315989358,1709315476276,-500.0,0.00022904,2]
[315989359,1709315476286,-648.77,0.00022904,2]
[315989360,1709315476296,-2766.29,0.00022904,2]
[315989361,1709315476307,-724.82,0.00022904,2]
[315989362,1709315476317,-500.0,0.00022904,2]
[315989363,1709315476327,-2335.5,0.00022904,2]
[315989364,1709315476338,-500.0,0.00022904,2]
[315989365,1709315476348,-500.0,0.00022904,2]
[315989366,1709315476359,-500.0,0.00022904,2]
[315989367,1709315476369,-500.0,0.00022904,2]
[315989368,1709315476380,-704.7,0.00022904,2]
[315989369,1709315476390,-500.0,0.00022904,2]
[315989370,1709315476400,-2362.12,0.00022904,2]
[315989371,1709315476411,-8337.41,0.00022904,2]
[315989372,1709315476421,-583.26,0.00022904,2]
[315989373,1709315476431,-500.0,0.00022904,2]
[315989374,1709315476441,-263.17,0.00022904,2]
[315989375,1709315476451,-500.0,0.00022904,2]
[315989376,1709315476462,-1148.57,0.00022904,2]
[315989377,1709315476472,-1699.62,0.00022904,2]
[315989378,1709315476482,-551.1,0.00022904,2]
[315989379,1709315476492,-500.0,0.00022904,2]
[315989380,1709315476503,-500.0,0.00022904,2]
[315989381,1709315476513,-701.9,0.00022904,2]
[315989382,1709315476523,-5377.1,0.00022904,2]
[315989383,1709315476534,-4734.59,0.00022904,2]
[315989384,1709315476544,-1549.54,0.00022904,2]
[315989385,1709315476555,-1054.75,0.00022904,2]
[315989386,1709315476566,-575.91,0.00022904,2]
[315989387,1709315476576,-500.0,0.00022904,2]
[315989388,1709315476586,-1036.54161506,0.0002295,3]
[315989389,1709315476596,-500.0,0.0002297,2]
[315989390,1709315476606,-574.08792291,0.0002297,2]
[315989391,1709315476619,-304.30293679,0.00022974,2]
[315989392,1709315476629,-628.47886136,0.00022974,2]
[315989393,1709315476639,-155.0,0.00022974,2]
[315989394,1709315476650,-988.25,0.00022974,2]
[315989395,1709315476660,-27573.60496367,0.00022975,2]
[315989396,1709315477200,-16786.0626285,0.00022975,2]
[315989397,1709315477214,-124058.30914004,0.00022975,2]
[315989398,1709315477231,-1172.16,0.00022975,2]
[315989399,1709315477244,-1688.0,0.00022975,2]
[315989400,1709315477263,-1487.78,0.00022136,2]
[315989401,1709315477272,-2055.72566443,0.00022975,2]
[315989402,1709315477283,-988.25,0.00022975,2]
[315989403,1709315477293,-150.0,0.00022975,2]
[315989404,1709315477302,-151.0,0.00022975,7]
[315989405,1709315477313,-2840.01380105,0.00022976,2]
[315989406,1709315479127,205.0,0.00013832,2]
[315989407,1709315480048,155.0,0.00013831,2]
[315989413,1709315593114,205.0,9.8e-05,2]
[315989414,1709315601985,293.13143813,0.00013831,2]
[315989415,1709315623972,243.55379847,0.00013831,2]
[315989416,1709315645961,243.55379847,0.00013831,2]
[315989417,1709315667966,155.0,0.00013831,2]
[315989418,1709315740780,-213.71639733,0.00018177,2]
[315989419,1709315740801,-944.08,0.00018178,2]
[315989420,1709315743828,204.01923883,0.00018176,2]
[315989421,1709315771430,-692.90731309,0.00019195,2]
[315989422,1709315771449,-155.0,0.00019196,2]
[315989423,1709315771472,-155.0,0.00019197,2]
[315989424,1709315771491,-423.02975116,0.00019197,2]
[315989425,1709315771509,-155.0,0.00019198,2]
[315989426,1709315771528,-1285.52369914,0.00019198,5]
[315989427,1709315771547,-1351.72360045,0.00019198,2]
[315989428,1709316076394,196.0,0.000147,2]
[315989429,1709316328062,155.0,0.000147,2]
[315989430,1709316346068,155.0,0.000147,2]
[315989431,1709316353772,657.33610934,0.000147,2]
[315989432,1709316367728,657.33610934,0.000147,2]
[315989433,1709316378081,155.0,0.000147,2]
[315989434,1709316385741,657.33610934,0.000147,2]
[315989435,1709316391130,-151.23653584,0.00014993,2]
[315989436,1709316394069,155.0,0.000147,2]
[315989437,1709316403724,657.33610934,0.000147,2]
[315989438,1709316410102,155.0,0.000147,2]
[315989439,1709316421740,657.33610934,0.000147,2]
[315989440,1709316428106,155.0,0.000147,2]
[315989441,1709316437736,657.33610934,0.000147,2]
[315989442,1709316455742,657.33610934,0.000147,2]
[315989443,1709316468078,165.45204194,0.000147,2]
[315989444,1709316473753,657.33610934,0.000147,2]
[315989445,1709316497743,657.33610934,0.000147,2]
[315989455,1709316513749,654.80285382,0.000147,2]
[315989480,1709316634148,-1285.52369914,0.00014986,5]
[315989481,1709316634159,-2158.2476961,0.00014987,2]
[315989482,1709316634169,-155.0,0.00014992,2]
[315989483,1709316634180,-52.78270299,0.00014993,2]
[315989484,1709316634193,-577.74948078,0.00014994,2]
[315989485,1709316634204,-896.87,0.00017123,2]
[315989486,1709316634214,-150.0,0.00018956,2]
[315989487,1709316634224,-300.0,0.00018956,2]
[315989488,1709316634234,-300.0,0.00018956,2]
[315989489,1709316634243,-23890.0,0.00018957,2]
[315989490,1709316634254,-16665.30106208,0.0001896,2]
[315989491,1709316634279,-893.80665806,0.0001896,2]
[315989492,1709316634301,-12419.79227986,0.0001896,2]
[315989493,1709316634311,-194.89,0.00019001,2]
[315989494,1709316634320,-10373.75,0.00019001,2]
[315989495,1709316634330,-531.52,0.00019001,2]
[315989496,1709316634339,-250.0,0.00019011,2]
[315989497,1709316634349,-500.0,0.0001903,2]
[315989498,1709316634359,-1419.4,0.0001903,2]
[315989499,1709316634369,-499.99,0.0001903,2]
[315989500,1709316634379,-182.1,0.00019066,2]
[315989501,1709316634389,-360.0,0.00019066,2]
[315989502,1709316634399,-169.38,0.00019066,2]
[315989503,1709316634409,-200.0,0.00019069,2]
[315989504,1709316634419,-500.0,0.00019089,2]
[315989505,1709316634428,-200.0,0.00019118,2]
[315989506,1709316634438,-2372.2,0.00019128,2]
[315989507,1709316634448,-200.0,0.00019149,2]
[315989508,1709316634458,-750.0,0.00019151,2]
[315989509,1709316634467,-1768.19,0.00019152,2]
[315989510,1709316634478,-150.0,0.00019169,2]
[315989511,1709316634488,-500.0,0.00019178,2]
[315989512,1709316634498,-1303.88,0.00019178,2]
[315989513,1709316634512,-250.0,0.00019178,2]
[315989514,1709316634522,-250.0,0.00019178,2]
[315989515,1709316634532,-2751.0,0.00019184,2]
[315989516,1709316634541,-809.72,0.00019194,2]
[315989517,1709316634552,-696.13775306,0.000192,2]
[315989519,1709316634562,-6003.6,0.00019334,2]
[315989521,1709316634572,-502.63,0.00019344,2]
[315989523,1709316634583,-4334.33,0.00019346,2]
[315989524,1709316634592,-896.87,0.00019387,2]
[315989525,1709316634602,-502.63,0.00019397,2]
[315989526,1709316634611,-502.63,0.0001945,2]
[315989529,1709316634620,-502.63,0.00019503,2]
[315989532,1709316634629,-502.63,0.00019556,2]
[315989535,1709316634638,-502.63,0.00019609,2]
[315989538,1709316634647,-26933.37980038,0.00019645,2]
[315989541,1709316634656,-502.63,0.00019662,2]
[315989543,1709316634666,-502.63,0.00019715,2]
[315989545,1709316634675,-502.63,0.00019768,2]
[315989546,1709316634685,-300.0,0.0001982,2]
[315989550,1709316634695,-502.63,0.00019821,2]
[315989552,1709316634704,-502.63,0.00019874,2]
[315989554,1709316634714,-502.63,0.00019927,2]
[315989556,1709316634723,-308.33,0.00019974,2]
[315989558,1709316634733,-502.63,0.00019981,2]
[315989560,1709316634745,-350.0,0.0002,3]
[315989562,1709316634764,-843.01421498,0.0002,3]
[315989565,1709316634783,-5616.13094204,0.0002,3]
[315989567,1709316634796,-438.18002578,0.0002,3]
[315989568,1709316634808,-1233.38103776,0.0002,3]
[315989570,1709316634818,-2237.03,0.00020023,2]
[315989571,1709316634835,-502.63,0.00020034,2]
[315989572,1709316634855,-640.0,0.00020048,2]
[315989573,1709316634865,-152.95,0.0002005,2]
[315989574,1709316634874,-299.99,0.0002007,7]
[315989575,1709316634884,-502.63,0.00020087,2]
[315989576,1709316634894,-502.63,0.0002014,2]
[315989577,1709316634905,-502.63,0.00020193,2]
[315989578,1709316634915,-502.63,0.00020246,2]
[315989579,1709316634924,-151.19236776,0.00020299,2]
[315989580,1709316634960,-351.43763224,0.00020299,2]
[315989581,1709316634970,-170.48,0.00020337,2]
[315989582,1709316634979,-502.63,0.00020352,2]
[315989583,1709316634990,-266.0,0.00020551,2]
[315989584,1709316634999,-20031.75565759,0.00020589,2]
[315989585,1709316635010,-4878.33,0.0002059,2]
[315989586,1709316635021,-4934.51,0.00020618,2]
[315989587,1709316635031,-17774.8084,0.00020651,2]
[315989588,1709316635041,-420.0,0.00020663,2]
[315989589,1709316635051,-420.0,0.00020663,2]
[315989590,1709316635062,-4808.52,0.00020672,2]
[315989591,1709316635073,-583.84,0.0002075,2]
[315989592,1709316635083,-5806.0838,0.00020752,2]
[315989593,1709316635094,-210.0,0.00020851,2]
[315989594,1709316635104,-308.33,0.00020973,2]
[315989595,1709316635115,-10012.42801365,0.00021,2]
[315989596,1709316635125,-207.77,0.0002106,2]
[315989597,1709316635135,-204.0,0.00021092,2]